[Event "Early-Titled-Tuesday-Blitz-November-28-2023"]
[Site "Chess.com"]
[Date "2023.11.28"]
[Round "3"]
[White "Rsnr"]
[Black "WPWPWP-2015"]
[Result "1-0"]
[WhiteElo "2928"]
[BlackElo "2525"]
[TimeControl "180+1"]
[EndTime "8:30:55 PST"]
[Termination "Rsnr won by resignation"]

1. d4 {[%clk 0:03:00.9]} 1... d5 {[%clk 0:02:58.6]} 2. c4 {[%clk 0:03:01.4]}
2... c6 {[%clk 0:02:58.6]} 3. Nf3 {[%clk 0:03:00.4]} 3... Nf6 {[%clk 0:02:59]}
4. Qc2 {[%clk 0:03:00.9]} 4... dxc4 {[%clk 0:02:58.5]} 5. Qxc4 {[%clk
0:03:01.8]} 5... Bf5 {[%clk 0:02:58.3]} 6. Nc3 {[%clk 0:03:02]} 6... e6 {[%clk
0:02:58.3]} 7. g3 {[%clk 0:03:02.6]} 7... Nbd7 {[%clk 0:02:58.1]} 8. Bg2 {[%clk
0:03:03.1]} 8... Be7 {[%clk 0:02:58.4]} 9. O-O {[%clk 0:03:03.4]} 9... O-O
{[%clk 0:02:58.5]} 10. Re1 {[%clk 0:03:03.6]} 10... Ne4 {[%clk 0:02:58]} 11. Qb3
{[%clk 0:03:04]} 11... Qc8 {[%clk 0:02:48.2]} 12. Nh4 {[%clk 0:03:02.8]} 12...
Bxh4 {[%clk 0:02:46.1]} 13. Nxe4 {[%clk 0:03:02.5]} 13... Be7 {[%clk 0:02:44.6]}
14. Bf4 {[%clk 0:03:01.7]} 14... Bxe4 {[%clk 0:02:39.7]} 15. Bxe4 {[%clk
0:03:02.6]} 15... Nf6 {[%clk 0:02:37.1]} 16. Bf3 {[%clk 0:03:02.9]} 16... Nd5
{[%clk 0:02:36.2]} 17. Bd2 {[%clk 0:03:03.2]} 17... a5 {[%clk 0:02:33.8]} 18. e4
{[%clk 0:03:01.4]} 18... a4 {[%clk 0:02:19]} 19. Qc4 {[%clk 0:02:58.5]} 19...
Nb6 {[%clk 0:02:17.2]} 20. Qc2 {[%clk 0:02:58.2]} 20... Rd8 {[%clk 0:02:15.9]}
21. Be3 {[%clk 0:02:55.3]} 21... Nd7 {[%clk 0:02:13.8]} 22. Rac1 {[%clk
0:02:54.6]} 22... e5 {[%clk 0:02:08]} 23. dxe5 {[%clk 0:02:24.3]} 23... Nxe5
{[%clk 0:02:07.6]} 24. Be2 {[%clk 0:02:25]} 24... Re8 {[%clk 0:01:42.3]} 25.
Rcd1 {[%clk 0:02:06.5]} 25... Qe6 {[%clk 0:01:25.3]} 26. a3 {[%clk 0:02:01.4]}
26... Ng4 {[%clk 0:01:19.4]} 27. Bf4 {[%clk 0:02:00.6]} 27... Nf6 {[%clk
0:01:11.5]} 28. f3 {[%clk 0:01:59.7]} 28... Bd8 {[%clk 0:01:07.8]} 29. Kg2
{[%clk 0:01:57.9]} 29... Bb6 {[%clk 0:01:03.7]} 30. Bc4 {[%clk 0:01:57.9]} 30...
Qc8 {[%clk 0:01:00.3]} 31. e5 {[%clk 0:01:56]} 31... Nd5 {[%clk 0:00:58]} 32.
Bxd5 {[%clk 0:01:41.4]} 32... cxd5 {[%clk 0:00:57.6]} 33. Qxc8 {[%clk
0:01:42.3]} 33... Raxc8 {[%clk 0:00:57.7]} 34. Rxd5 {[%clk 0:01:43.2]} 34...
Rc2+ {[%clk 0:00:57.1]} 35. Rd2 {[%clk 0:01:43.4]} 35... Rxd2+ {[%clk 0:00:52]}
36. Bxd2 {[%clk 0:01:44.3]} 36... Bd4 {[%clk 0:00:50]} 37. Bc3 {[%clk
0:01:44.5]} 37... Bxc3 {[%clk 0:00:48.1]} 38. bxc3 {[%clk 0:01:45.4]} 38... Rc8
{[%clk 0:00:45.6]} 39. Re3 {[%clk 0:01:45.2]} 39... Rd8 {[%clk 0:00:45.8]} 40.
Re4 {[%clk 0:01:38.1]} 40... b5 {[%clk 0:00:39.3]} 41. Rb4 {[%clk 0:01:35.1]}
41... Rd2+ {[%clk 0:00:37]} 42. Kh3 {[%clk 0:01:35.1]} 42... Kf8 {[%clk
0:00:35.7]} 43. Rxb5 {[%clk 0:01:34.1]} 43... Ra2 {[%clk 0:00:35.5]} 44. f4
{[%clk 0:01:07.4]} 44... Rxa3 {[%clk 0:00:35.4]} 45. c4 {[%clk 0:01:08.1]} 45...
g6 {[%clk 0:00:34]} 46. Ra5 {[%clk 0:01:07.3]} 46... Ke7 {[%clk 0:00:32.6]} 47.
Ra7+ {[%clk 0:01:05.6]} 47... Ke6 {[%clk 0:00:32.1]} 48. Ra6+ {[%clk 0:01:06.3]}
48... Kd7 {[%clk 0:00:28.5]} 49. Kg4 {[%clk 0:01:03.8]} 49... h6 {[%clk
0:00:23.6]} 50. f5 {[%clk 0:00:54.7]} 50... gxf5+ {[%clk 0:00:19.2]} 51. Kxf5
{[%clk 0:00:55.6]} 51... Ra2 {[%clk 0:00:16.5]} 52. Ra7+ {[%clk 0:00:55.5]}
52... Ke8 {[%clk 0:00:16.4]} 53. h4 {[%clk 0:00:27.7]} 53... a3 {[%clk
0:00:13.7]} 54. Kf6 {[%clk 0:00:28.3]} 54... Rf2+ {[%clk 0:00:12.9]} 55. Kg7
{[%clk 0:00:29]} 55... Rf3 {[%clk 0:00:12.1]} 56. g4 {[%clk 0:00:29]} 56... Rf4
{[%clk 0:00:12]} 57. g5 {[%clk 0:00:20.6]} 57... h5 {[%clk 0:00:12.1]} 58. Rxa3
{[%clk 0:00:12.8]} 58... Rxh4 {[%clk 0:00:12.3]} 59. Ra8+ {[%clk 0:00:12.8]}
59... Ke7 {[%clk 0:00:12.6]} 60. Ra7+ {[%clk 0:00:13.4]} 60... Ke6 {[%clk
0:00:12.8]} 61. Rxf7 {[%clk 0:00:13.7]} 61... Rxc4 {[%clk 0:00:12.3]} 62. g6
{[%clk 0:00:13.5]} 62... h4 {[%clk 0:00:12.5]} 63. Rf3 {[%clk 0:00:11.3]} 63...
Kxe5 {[%clk 0:00:08.9]} 64. Kh7 {[%clk 0:00:10.5]} 64... Ke4 {[%clk 0:00:08.7]}
65. Rh3 {[%clk 0:00:09.9]} 65... Kf5 {[%clk 0:00:07.6]} 66. g7 {[%clk
0:00:10.1]} 66... Kg4 {[%clk 0:00:04.3]} 67. g8=Q+ {[%clk 0:00:08.9]} 67... Kxh3
{[%clk 0:00:04]} 68. Qxc4 {[%clk 0:00:09.8]} 68... Kg3 {[%clk 0:00:04.2]} 69.
Qd3+ {[%clk 0:00:07.9]} 69... Kg2 {[%clk 0:00:04.4]} 70. Qe4+ {[%clk 0:00:08.1]}
70... Kg3 {[%clk 0:00:05]} 71. Qe3+ {[%clk 0:00:07.3]} 71... Kg2 {[%clk
0:00:05.2]} 72. Qf4 {[%clk 0:00:07.4]} 72... h3 {[%clk 0:00:05.5]} 73. Qg4+
{[%clk 0:00:07.9]} 73... Kh2 {[%clk 0:00:05.8]} 74. Kg6 {[%clk 0:00:08.3]} 74...
Kh1 {[%clk 0:00:06.4]} 75. Qxh3+ {[%clk 0:00:09.2]} 75... Kg1 {[%clk 0:00:07]}
76. Qf3 {[%clk 0:00:09.7]} 76... Kh2 {[%clk 0:00:07.3]} 77. Qg4 {[%clk
0:00:10.4]} 77... Kh1 {[%clk 0:00:07.7]} 78. Kf5 {[%clk 0:00:11.3]} 1-0

[Event "Early-Titled-Tuesday-Blitz-November-28-2023"]
[Site "Chess.com"]
[Date "2023.11.28"]
[Round "3"]
[White "wonderfultime"]
[Black "Witik"]
[Result "1-0"]
[WhiteElo "3072"]
[BlackElo "2796"]
[TimeControl "180+1"]
[EndTime "8:31:04 PST"]
[Termination "wonderfultime won on time"]

1. d4 {[%clk 0:03:00.9]} 1... Nf6 {[%clk 0:02:59.8]} 2. c4 {[%clk 0:03:00.1]}
2... g6 {[%clk 0:02:56.7]} 3. Nf3 {[%clk 0:02:59.4]} 3... Bg7 {[%clk 0:02:56]}
4. g3 {[%clk 0:02:59.9]} 4... c6 {[%clk 0:02:56.3]} 5. Bg2 {[%clk 0:02:59.3]}
5... d5 {[%clk 0:02:56.6]} 6. cxd5 {[%clk 0:02:59.3]} 6... cxd5 {[%clk
0:02:56.6]} 7. O-O {[%clk 0:02:59.5]} 7... O-O {[%clk 0:02:57.2]} 8. Ne5 {[%clk
0:02:58.5]} 8... e6 {[%clk 0:02:56.3]} 9. Nc3 {[%clk 0:02:57.8]} 9... Nfd7
{[%clk 0:02:56.4]} 10. Nf3 {[%clk 0:02:29]} 10... Nc6 {[%clk 0:02:56.4]} 11. b3
{[%clk 0:02:28.8]} 11... b6 {[%clk 0:02:53.4]} 12. Ba3 {[%clk 0:02:22]} 12...
Re8 {[%clk 0:02:53.3]} 13. Rc1 {[%clk 0:02:18.8]} 13... Bb7 {[%clk 0:02:48.2]}
14. Nb5 {[%clk 0:02:17.9]} 14... Bf8 {[%clk 0:02:46]} 15. Nd6 {[%clk 0:02:12.6]}
15... Qb8 {[%clk 0:02:34.7]} 16. Nb5 {[%clk 0:01:44.4]} 16... Bxa3 {[%clk
0:02:17.9]} 17. Nxa3 {[%clk 0:01:45.3]} 17... a6 {[%clk 0:02:11.1]} 18. Qd2
{[%clk 0:01:45.3]} 18... Qd6 {[%clk 0:02:09.2]} 19. Nb1 {[%clk 0:01:45.2]} 19...
Rac8 {[%clk 0:02:06.7]} 20. Nc3 {[%clk 0:01:39.4]} 20... b5 {[%clk 0:02:01.5]}
21. h4 {[%clk 0:01:36]} 21... Ne7 {[%clk 0:01:56]} 22. e3 {[%clk 0:01:30.6]}
22... Rc7 {[%clk 0:01:54]} 23. Ne2 {[%clk 0:01:28.9]} 23... Rec8 {[%clk
0:01:53.9]} 24. Rxc7 {[%clk 0:01:29]} 24... Rxc7 {[%clk 0:01:53.5]} 25. Rc1
{[%clk 0:01:27.4]} 25... Rxc1+ {[%clk 0:01:46.7]} 26. Nxc1 {[%clk 0:01:28.3]}
26... Qc7 {[%clk 0:01:37.9]} 27. Nd3 {[%clk 0:01:28.1]} 27... a5 {[%clk
0:01:38.5]} 28. a3 {[%clk 0:01:22]} 28... Nc6 {[%clk 0:01:31]} 29. Bf1 {[%clk
0:01:21.8]} 29... Qd6 {[%clk 0:01:30.5]} 30. b4 {[%clk 0:01:19.2]} 30... axb4
{[%clk 0:01:28.1]} 31. axb4 {[%clk 0:01:20.1]} 31... Ba6 {[%clk 0:00:54.8]} 32.
Qa2 {[%clk 0:01:13.6]} 32... Bc8 {[%clk 0:00:52]} 33. Qb3 {[%clk 0:01:02.3]}
33... Nb6 {[%clk 0:00:50.8]} 34. Nc5 {[%clk 0:00:59.2]} 34... Nc4 {[%clk
0:00:51.1]} 35. Qa2 {[%clk 0:00:58.9]} 35... Nxb4 {[%clk 0:00:40.9]} 36. Qb3
{[%clk 0:00:56.2]} 36... Na6 {[%clk 0:00:38.8]} 37. Qxb5 {[%clk 0:00:55]} 37...
Nc7 {[%clk 0:00:22.5]} 38. Qb8 {[%clk 0:00:54.7]} 38... Nb6 {[%clk 0:00:22.5]}
39. Ba6 {[%clk 0:00:48.3]} 39... Nb5 {[%clk 0:00:21.3]} 40. Qxd6 {[%clk
0:00:40.4]} 40... Nxd6 {[%clk 0:00:22.2]} 41. Bd3 {[%clk 0:00:39.9]} 41... h6
{[%clk 0:00:18.7]} 42. Ne5 {[%clk 0:00:38.9]} 42... Kf8 {[%clk 0:00:17.4]} 43.
g4 {[%clk 0:00:37.7]} 43... g5 {[%clk 0:00:15.4]} 44. hxg5 {[%clk 0:00:35.3]}
44... hxg5 {[%clk 0:00:16.3]} 45. f4 {[%clk 0:00:36.2]} 45... f6 {[%clk
0:00:15.6]} 46. Nf3 {[%clk 0:00:35.2]} 46... Nf7 {[%clk 0:00:12.4]} 47. Kf2
{[%clk 0:00:32.1]} 47... Ke7 {[%clk 0:00:12.5]} 48. Bg6 {[%clk 0:00:32.2]} 48...
Nh6 {[%clk 0:00:12.3]} 49. Bh5 {[%clk 0:00:28.3]} 49... gxf4 {[%clk 0:00:07.4]}
50. exf4 {[%clk 0:00:29.2]} 50... Nc4 {[%clk 0:00:07.2]} 51. g5 {[%clk
0:00:22.8]} 51... Nf5 {[%clk 0:00:05.6]} 52. Bg4 {[%clk 0:00:18.4]} 52... Ncd6
{[%clk 0:00:05.7]} 53. Nd3 {[%clk 0:00:10]} 53... Ne4+ {[%clk 0:00:05.7]} 54.
Kg2 {[%clk 0:00:10.2]} 54... Ba6 {[%clk 0:00:06.4]} 55. Nc5 {[%clk 0:00:09.1]}
55... Be2 {[%clk 0:00:04]} 56. Bxf5 {[%clk 0:00:07.5]} 56... exf5 {[%clk
0:00:03.2]} 57. g6 {[%clk 0:00:08.2]} 57... Kf8 {[%clk 0:00:01.7]} 58. Nh4
{[%clk 0:00:08.7]} 58... Bg4 {[%clk 0:00:01.6]} 59. Ne6+ {[%clk 0:00:08.9]}
59... Kg8 {[%clk 0:00:02.2]} 60. Nf3 {[%clk 0:00:08.6]} 60... Nd6 {[%clk
0:00:01.7]} 61. Ne1 {[%clk 0:00:09]} 61... Ne8 {[%clk 0:00:01.7]} 62. Nd3 {[%clk
0:00:08.7]} 62... Ng7 {[%clk 0:00:02.6]} 63. Nc7 {[%clk 0:00:08.2]} 63... Nh5
{[%clk 0:00:03.2]} 64. Ne6 {[%clk 0:00:05.8]} 64... Ng7 {[%clk 0:00:03.8]} 65.
Ndc5 {[%clk 0:00:06.1]} 65... Nxe6 {[%clk 0:00:03.4]} 66. Nxe6 {[%clk 0:00:07]}
66... Bh5 {[%clk 0:00:03.8]} 67. Nc7 {[%clk 0:00:05.3]} 67... Bxg6 {[%clk
0:00:04]} 68. Nxd5 {[%clk 0:00:06.1]} 68... Kf7 {[%clk 0:00:04.9]} 69. Kf3
{[%clk 0:00:05]} 69... Ke6 {[%clk 0:00:05.4]} 70. Ne3 {[%clk 0:00:05.5]} 70...
Bh5+ {[%clk 0:00:05.5]} 71. Kf2 {[%clk 0:00:06.2]} 71... Bg6 {[%clk 0:00:05.4]}
72. Ke1 {[%clk 0:00:06.9]} 72... Kd6 {[%clk 0:00:05.7]} 73. Kd2 {[%clk
0:00:07.6]} 73... Ke6 {[%clk 0:00:05.6]} 74. Kc3 {[%clk 0:00:08.2]} 74... Bh5
{[%clk 0:00:06.1]} 75. Kc4 {[%clk 0:00:08.7]} 75... Bf3 {[%clk 0:00:06.2]} 76.
Kc5 {[%clk 0:00:09.1]} 76... Be4 {[%clk 0:00:06.4]} 77. d5+ {[%clk 0:00:09.6]}
77... Kd7 {[%clk 0:00:06.8]} 78. Nc4 {[%clk 0:00:10.1]} 78... Bf3 {[%clk
0:00:06.4]} 79. Nb6+ {[%clk 0:00:10.2]} 79... Ke7 {[%clk 0:00:06.9]} 80. Kc6
{[%clk 0:00:10.2]} 80... Be4 {[%clk 0:00:06.9]} 81. Kc7 {[%clk 0:00:10.6]} 1-0

[Event "Early-Titled-Tuesday-Blitz-November-28-2023"]
[Site "Chess.com"]
[Date "2023.11.28"]
[Round "3"]
[White "FunnyDuck66"]
[Black "kakarot_001"]
[Result "1-0"]
[WhiteElo "2522"]
[BlackElo "2684"]
[TimeControl "180+1"]
[EndTime "8:31:41 PST"]
[Termination "FunnyDuck66 won on time"]

1. d4 {[%clk 0:03:00.9]} 1... Nf6 {[%clk 0:02:58.5]} 2. Nf3 {[%clk 0:02:58.9]}
2... g6 {[%clk 0:02:58.4]} 3. Bg5 {[%clk 0:02:57.4]} 3... Bg7 {[%clk 0:02:58.3]}
4. Nbd2 {[%clk 0:02:57]} 4... O-O {[%clk 0:02:58.8]} 5. c3 {[%clk 0:02:56.2]}
5... d6 {[%clk 0:02:59.1]} 6. e4 {[%clk 0:02:56.2]} 6... c5 {[%clk 0:02:58.2]}
7. dxc5 {[%clk 0:02:53.7]} 7... dxc5 {[%clk 0:02:58.1]} 8. Be2 {[%clk
0:02:53.6]} 8... Nc6 {[%clk 0:02:57.5]} 9. O-O {[%clk 0:02:53.6]} 9... Bg4
{[%clk 0:02:56.6]} 10. Qc2 {[%clk 0:02:53.4]} 10... h6 {[%clk 0:02:50.4]} 11.
Bh4 {[%clk 0:02:53.2]} 11... Nh5 {[%clk 0:02:35.2]} 12. Nc4 {[%clk 0:02:51]}
12... Nf4 {[%clk 0:02:30.1]} 13. Ne3 {[%clk 0:02:51.1]} 13... Bxf3 {[%clk
0:02:11.3]} 14. Bxf3 {[%clk 0:02:51.2]} 14... Ne5 {[%clk 0:02:11.6]} 15. Be2
{[%clk 0:02:51]} 15... Nxe2+ {[%clk 0:02:10.5]} 16. Qxe2 {[%clk 0:02:51.6]}
16... Qd3 {[%clk 0:02:04.5]} 17. Qxd3 {[%clk 0:02:40.8]} 17... Nxd3 {[%clk
0:02:05.4]} 18. Bxe7 {[%clk 0:02:28.1]} 18... Rfe8 {[%clk 0:02:03.5]} 19. Nd5
{[%clk 0:02:28.4]} 19... Nxb2 {[%clk 0:01:12.9]} 20. Rab1 {[%clk 0:02:06.3]}
20... Na4 {[%clk 0:01:12.9]} 21. Rxb7 {[%clk 0:02:04.7]} 21... Nxc3 {[%clk
0:01:12]} 22. Bxc5 {[%clk 0:01:58.1]} 22... Rxe4 {[%clk 0:01:01.8]} 23. Nxc3
{[%clk 0:01:53.7]} 23... Bxc3 {[%clk 0:01:02.3]} 24. Bxa7 {[%clk 0:01:50]} 24...
Ra4 {[%clk 0:00:59.2]} 25. Rb8+ {[%clk 0:01:42.5]} 25... Rxb8 {[%clk 0:00:58.1]}
26. Bxb8 {[%clk 0:01:43.4]} 26... Rxa2 {[%clk 0:00:57.3]} 27. Bf4 {[%clk
0:01:40]} 27... Kg7 {[%clk 0:00:53.8]} 28. Be3 {[%clk 0:01:37]} 28... g5 {[%clk
0:00:49.7]} 29. Rc1 {[%clk 0:01:35.1]} 29... Be5 {[%clk 0:00:49.8]} 30. h3
{[%clk 0:01:32.8]} 30... Kg6 {[%clk 0:00:46.6]} 31. g4 {[%clk 0:01:29.1]} 31...
h5 {[%clk 0:00:42.4]} 32. Rc6+ {[%clk 0:01:27]} 32... f6 {[%clk 0:00:42.1]} 33.
Kg2 {[%clk 0:01:26.9]} 33... Ra4 {[%clk 0:00:37.4]} 34. Kf3 {[%clk 0:01:26.2]}
34... Ra1 {[%clk 0:00:37.5]} 35. Kg2 {[%clk 0:01:21]} 35... Rb1 {[%clk
0:00:37.6]} 36. Rc8 {[%clk 0:01:17.3]} 36... Rb4 {[%clk 0:00:33.2]} 37. Kf3
{[%clk 0:01:13.9]} 37... Rb3 {[%clk 0:00:33]} 38. Rg8+ {[%clk 0:01:10.9]} 38...
Kf7 {[%clk 0:00:31.3]} 39. Ra8 {[%clk 0:01:08.1]} 39... h4 {[%clk 0:00:25]} 40.
Kg2 {[%clk 0:01:02]} 40... Ke6 {[%clk 0:00:22.7]} 41. Ra6+ {[%clk 0:01:01.4]}
41... Kd5 {[%clk 0:00:22.1]} 42. Kf3 {[%clk 0:00:58.5]} 42... Rb1 {[%clk
0:00:20.5]} 43. Kg2 {[%clk 0:00:57.2]} 43... Ke4 {[%clk 0:00:20.3]} 44. Ra4+
{[%clk 0:00:56.2]} 44... Kd3 {[%clk 0:00:20.1]} 45. Ra3+ {[%clk 0:00:56.5]}
45... Ke2 {[%clk 0:00:17.3]} 46. Ra2+ {[%clk 0:00:55.8]} 46... Kd3 {[%clk
0:00:17.5]} 47. Ra3+ {[%clk 0:00:55.8]} 47... Kc4 {[%clk 0:00:17.3]} 48. Ra4+
{[%clk 0:00:54.9]} 48... Kd5 {[%clk 0:00:15.9]} 49. Ra5+ {[%clk 0:00:54.9]}
49... Ke6 {[%clk 0:00:15.6]} 50. Ra6+ {[%clk 0:00:54.9]} 50... Kf7 {[%clk
0:00:16.2]} 51. Ra7+ {[%clk 0:00:53.7]} 51... Kg6 {[%clk 0:00:16.3]} 52. Ra5
{[%clk 0:00:54]} 52... Rb3 {[%clk 0:00:16.2]} 53. Ra7 {[%clk 0:00:45]} 53... Rb4
{[%clk 0:00:13.7]} 54. Kf3 {[%clk 0:00:42.5]} 54... Bd4 {[%clk 0:00:09.4]} 55.
Re7 {[%clk 0:00:37.9]} 55... Be5 {[%clk 0:00:07.8]} 56. Ra7 {[%clk 0:00:37.2]}
56... Rc4 {[%clk 0:00:07.8]} 57. Rb7 {[%clk 0:00:36.2]} 57... Rc6 {[%clk
0:00:08]} 58. Ke4 {[%clk 0:00:33.5]} 58... Ra6 {[%clk 0:00:07.6]} 59. Rd7 {[%clk
0:00:31.5]} 59... Ra4+ {[%clk 0:00:08]} 60. Kf3 {[%clk 0:00:31.6]} 60... Ra1
{[%clk 0:00:07.9]} 61. Kg2 {[%clk 0:00:31.6]} 61... Ra3 {[%clk 0:00:08.2]} 62.
Rb7 {[%clk 0:00:29.8]} 62... Ra4 {[%clk 0:00:08.3]} 63. Kf3 {[%clk 0:00:29.8]}
63... Bf4 {[%clk 0:00:08.3]} 64. Re7 {[%clk 0:00:27.6]} 64... Bd6 {[%clk
0:00:06.7]} 65. Re4 {[%clk 0:00:27.1]} 65... Ra1 {[%clk 0:00:05.9]} 66. Kg2
{[%clk 0:00:26.3]} 66... Be5 {[%clk 0:00:06.3]} 67. Rc4 {[%clk 0:00:25.6]} 67...
Ra2 {[%clk 0:00:06.6]} 68. Rc6 {[%clk 0:00:25]} 68... Kf7 {[%clk 0:00:06.8]} 69.
Rb6 {[%clk 0:00:24]} 69... Ra4 {[%clk 0:00:05.5]} 70. Kf3 {[%clk 0:00:23.6]}
70... Ke7 {[%clk 0:00:06]} 71. Rb1 {[%clk 0:00:12.5]} 71... Ke6 {[%clk
0:00:06.1]} 72. Rd1 {[%clk 0:00:11.5]} 72... Ra3 {[%clk 0:00:06.3]} 73. Kg2
{[%clk 0:00:10.8]} 73... Ra2 {[%clk 0:00:06.8]} 74. Kf3 {[%clk 0:00:10.5]} 74...
Ra4 {[%clk 0:00:07.4]} 75. Kg2 {[%clk 0:00:09.4]} 75... Ra3 {[%clk 0:00:07.2]}
76. Kf3 {[%clk 0:00:08.8]} 76... Bf4 {[%clk 0:00:07.1]} 77. Re1 {[%clk
0:00:06.8]} 77... Kd5 {[%clk 0:00:05.8]} 78. Rd1+ {[%clk 0:00:04.9]} 78... Ke6
{[%clk 0:00:06.2]} 79. Re1 {[%clk 0:00:04.2]} 79... Kf7 {[%clk 0:00:06.7]} 80.
Rd1 {[%clk 0:00:04.6]} 80... Bxe3 {[%clk 0:00:06.6]} 81. fxe3 {[%clk 0:00:05.5]}
81... Ra2 {[%clk 0:00:07.2]} 82. Rb1 {[%clk 0:00:06]} 82... Rh2 {[%clk
0:00:05.5]} 83. Rb7+ {[%clk 0:00:06.6]} 83... Kg6 {[%clk 0:00:05.8]} 84. Rb6
{[%clk 0:00:05.8]} 84... Rxh3+ {[%clk 0:00:06.1]} 85. Kf2 {[%clk 0:00:06.4]}
85... Rg3 {[%clk 0:00:04.7]} 86. Rb4 {[%clk 0:00:05]} 86... Rh3 {[%clk
0:00:03.7]} 87. Ra4 {[%clk 0:00:02.8]} 87... Rh2+ {[%clk 0:00:04]} 88. Kf3
{[%clk 0:00:03.3]} 1-0

[Event "Early-Titled-Tuesday-Blitz-November-28-2023"]
[Site "Chess.com"]
[Date "2023.11.28"]
[Round "4"]
[White "MaxLeto"]
[Black "Karateloru"]
[Result "0-1"]
[WhiteElo "2555"]
[BlackElo "2799"]
[TimeControl "180+1"]
[EndTime "8:34:06 PST"]
[Termination "Karateloru won by resignation"]

1. h4 {[%clk 0:02:54.8]} 1... d5 {[%clk 0:02:57.8]} 2. h5 {[%clk 0:02:55.7]}
2... e5 {[%clk 0:02:55.8]} 3. a4 {[%clk 0:02:56.6]} 3... Nc6 {[%clk 0:02:54.1]}
4. a5 {[%clk 0:02:57.5]} 4... h6 {[%clk 0:02:50.5]} 5. e3 {[%clk 0:02:57.3]}
5... a6 {[%clk 0:02:49.9]} 6. d4 {[%clk 0:02:57]} 6... Nf6 {[%clk 0:02:43.7]} 7.
dxe5 {[%clk 0:02:55.7]} 7... Nxe5 {[%clk 0:02:43.2]} 8. Be2 {[%clk 0:02:56.6]}
8... Bd6 {[%clk 0:02:39.3]} 9. Nf3 {[%clk 0:02:57.1]} 9... Qe7 {[%clk
0:02:38.5]} 10. Nbd2 {[%clk 0:02:55.8]} 10... Neg4 {[%clk 0:02:33.3]} 11. Nb3
{[%clk 0:02:54.5]} 11... O-O {[%clk 0:02:27.7]} 12. Nfd4 {[%clk 0:02:51.7]}
12... c5 {[%clk 0:02:23.4]} 13. Nf3 {[%clk 0:02:44.5]} 13... Ne4 {[%clk
0:02:00.6]} 14. Rf1 {[%clk 0:02:43.3]} 14... Ngxf2 {[%clk 0:01:57.5]} 15. Qxd5
{[%clk 0:02:42.5]} 15... Bg3 {[%clk 0:01:54.4]} 0-1

[Event "Early-Titled-Tuesday-Blitz-November-28-2023"]
[Site "Chess.com"]
[Date "2023.11.28"]
[Round "4"]
[White "lefonghua"]
[Black "koncheto"]
[Result "1-0"]
[WhiteElo "2719"]
[BlackElo "2525"]
[TimeControl "180+1"]
[EndTime "8:34:07 PST"]
[Termination "lefonghua won by resignation"]

1. d4 {[%clk 0:03:00.9]} 1... Nf6 {[%clk 0:02:49.7]} 2. c4 {[%clk 0:03:01.2]}
2... e6 {[%clk 0:02:50.3]} 3. Nc3 {[%clk 0:03:01.7]} 3... c5 {[%clk 0:02:51.2]}
4. d5 {[%clk 0:03:01.9]} 4... exd5 {[%clk 0:02:52.1]} 5. cxd5 {[%clk 0:03:02.8]}
5... d6 {[%clk 0:02:52.9]} 6. e4 {[%clk 0:03:03.4]} 6... g6 {[%clk 0:02:53.7]}
7. f4 {[%clk 0:03:03.9]} 7... Bg7 {[%clk 0:02:54]} 8. Nf3 {[%clk 0:03:04.5]}
8... Bg4 {[%clk 0:02:51.8]} 9. Be2 {[%clk 0:03:04.8]} 9... Bxf3 {[%clk
0:02:51.6]} 10. Bxf3 {[%clk 0:03:05.7]} 10... O-O {[%clk 0:02:52.3]} 11. O-O
{[%clk 0:03:05.9]} 11... Na6 {[%clk 0:02:51.5]} 12. Re1 {[%clk 0:03:02.4]} 12...
Rc8 {[%clk 0:02:45.3]} 13. Be3 {[%clk 0:02:55.3]} 13... Re8 {[%clk 0:02:40.2]}
14. Qd2 {[%clk 0:02:39.5]} 14... Qa5 {[%clk 0:02:30.7]} 15. a3 {[%clk
0:02:32.5]} 15... c4 {[%clk 0:02:29.9]} 16. Kh1 {[%clk 0:02:30.3]} 16... Nc5
{[%clk 0:02:27.5]} 17. Bxc5 {[%clk 0:02:29.4]} 17... Qxc5 {[%clk 0:02:27.7]} 18.
e5 {[%clk 0:02:28.7]} 18... Nd7 {[%clk 0:02:17.5]} 19. Ne4 {[%clk 0:02:26.5]}
1-0

[Event "Early-Titled-Tuesday-Blitz-November-28-2023"]
[Site "Chess.com"]
[Date "2023.11.28"]
[Round "4"]
[White "Mihajlovskij"]
[Black "arenal72"]
[Result "0-1"]
[WhiteElo "2241"]
[BlackElo "2496"]
[TimeControl "180+1"]
[EndTime "8:34:09 PST"]
[Termination "arenal72 won by resignation"]

1. e4 {[%clk 0:03:00.9]} 1... Nc6 {[%clk 0:02:58]} 2. Nf3 {[%clk 0:02:59.9]}
2... d6 {[%clk 0:02:57.5]} 3. h3 {[%clk 0:02:58.6]} 3... Nf6 {[%clk 0:02:56.5]}
4. Nc3 {[%clk 0:02:57.8]} 4... g6 {[%clk 0:02:56.8]} 5. d4 {[%clk 0:02:56.9]}
5... Bg7 {[%clk 0:02:56.3]} 6. Be3 {[%clk 0:02:57.4]} 6... a6 {[%clk 0:02:53.4]}
7. a4 {[%clk 0:02:56.6]} 7... a5 {[%clk 0:02:49.4]} 8. Qd2 {[%clk 0:02:57.5]}
8... Nb4 {[%clk 0:02:46.1]} 9. O-O-O {[%clk 0:02:54.1]} 9... O-O {[%clk
0:02:38.3]} 10. g4 {[%clk 0:02:52.9]} 10... c6 {[%clk 0:02:34.1]} 11. g5 {[%clk
0:02:51]} 11... Nh5 {[%clk 0:02:32]} 12. Kb1 {[%clk 0:02:37.9]} 12... d5 {[%clk
0:02:30.1]} 13. Bd3 {[%clk 0:02:33]} 13... dxe4 {[%clk 0:02:21.8]} 14. Bxe4
{[%clk 0:02:33.9]} 14... Be6 {[%clk 0:02:18.2]} 15. Ne2 {[%clk 0:02:24.3]} 15...
Bd5 {[%clk 0:02:15]} 16. Bxd5 {[%clk 0:02:15.5]} 0-1

[Event "Early-Titled-Tuesday-Blitz-November-28-2023"]
[Site "Chess.com"]
[Date "2023.11.28"]
[Round "4"]
[White "BardArtem"]
[Black "GlavkonVVS"]
[Result "1-0"]
[WhiteElo "2772"]
[BlackElo "2541"]
[TimeControl "180+1"]
[EndTime "8:34:17 PST"]
[Termination "BardArtem won by resignation"]

1. e4 {[%clk 0:03:00.9]} 1... Nf6 {[%clk 0:02:59.4]} 2. e5 {[%clk 0:02:58.4]}
2... Nd5 {[%clk 0:02:59.5]} 3. Nc3 {[%clk 0:02:57.3]} 3... Nb6 {[%clk 0:02:59]}
4. a4 {[%clk 0:02:57.1]} 4... a5 {[%clk 0:02:58.1]} 5. d4 {[%clk 0:02:56.3]}
5... d6 {[%clk 0:02:58.5]} 6. Nf3 {[%clk 0:02:56.2]} 6... Bg4 {[%clk 0:02:56.5]}
7. Be2 {[%clk 0:02:55.9]} 7... e6 {[%clk 0:02:56.5]} 8. O-O {[%clk 0:02:55.8]}
8... Be7 {[%clk 0:02:55.7]} 9. h3 {[%clk 0:02:55.6]} 9... Bh5 {[%clk 0:02:52.2]}
10. Bf4 {[%clk 0:02:55]} 10... O-O {[%clk 0:02:51.5]} 11. Ne4 {[%clk 0:02:51.7]}
11... d5 {[%clk 0:02:51.3]} 12. Ng3 {[%clk 0:02:49.5]} 12... Bxf3 {[%clk
0:02:51.3]} 13. Bxf3 {[%clk 0:02:49.6]} 13... c5 {[%clk 0:02:51.6]} 14. dxc5
{[%clk 0:02:43.6]} 14... Bxc5 {[%clk 0:02:49.3]} 15. Be2 {[%clk 0:02:43.9]}
15... Nc6 {[%clk 0:02:48.3]} 16. Bd3 {[%clk 0:02:37.8]} 16... Bd4 {[%clk
0:02:32.6]} 17. Qh5 {[%clk 0:02:22.8]} 17... g6 {[%clk 0:02:32.1]} 18. Qh6
{[%clk 0:02:18.8]} 18... Bxe5 {[%clk 0:02:30.7]} 19. Bxe5 {[%clk 0:02:18.9]}
19... Nxe5 {[%clk 0:02:30.3]} 20. Nh5 {[%clk 0:02:19.4]} 1-0